bitfinex/quotes_ETHUSD_20251117
["timestamp","ask_amount","ask_price","bid_price","bid_amount"]
[1763388053657,0.4717,3118.6,3118.1,0.001]
[1763388054046,0.405504,3118.2,3115.9,0.85888344]
[1763388054274,0.405504,3118.2,3115.7,0.4966]
[1763388054275,1.31249664,3118.2,3115.7,0.4966]
[1763388054472,0.405504,3118.0,3115.7,0.4966]
[1763388054973,0.405504,3117.8,3115.7,0.4966]
[1763388055171,0.50396406,3118.8,3115.7,0.4966]
[1763388055397,0.405504,3117.6,3115.7,0.4966]
[1763388055749,0.4717,3117.5,3115.7,0.4966]
[1763388055963,0.405504,3117.4,3115.7,0.4966]
[1763388056248,0.405504,3117.4,3115.4,0.001]
[1763388056469,0.405504,3117.2,3115.4,0.001]
[1763388056983,0.405504,3117.0,3115.4,0.001]
[1763388057186,0.4717,3117.1,3115.5,0.4966]
[1763388057479,0.47009741,3117.1,3115.5,0.4966]
[1763388057680,0.405504,3117.0,3115.4,0.001]
[1763388058106,0.405504,3117.2,3115.4,0.001]
[1763388059435,0.1896,3115.5,3115.4,0.001]
[1763388059643,0.6624,3115.5,3115.4,0.001]
[1763388060282,0.1896,3115.5,3115.4,0.001]
[1763388060479,0.1896,3115.9,3115.4,0.001]
[1763388061135,0.405504,3115.7,3115.4,0.001]
[1763388061484,0.4728,3115.6,3115.0,0.001]
[1763388061685,0.1896,3116.2,3115.0,0.001]
[1763388061906,0.1896,3116.7,3115.0,0.50300272]
[1763388062117,0.1896,3116.7,3115.0,0.4709]
[1763388062282,0.4728,3116.6,3115.0,0.4709]
[1763388062484,0.4728,3116.6,3115.1,0.03210169]
[1763388062720,0.4728,3117.7,3115.2,0.405504]
[1763388062892,0.1896,3119.9,3116.5,0.1814]
[1763388062893,0.4728,3118.1,3116.5,0.1814]
[1763388063094,0.4728,3118.1,3115.3,0.4699]
[1763388063294,0.4728,3118.1,3115.4,0.4376026]
[1763388063620,0.472,3118.1,3115.4,0.405504]
[1763388063919,0.472,3118.1,3115.5,0.4699]
[1763388064320,0.472,3118.1,3115.6,0.405504]
[1763388064523,0.472,3118.1,3115.5,0.4699]
[1763388064722,0.405504,3118.0,3115.2,0.1814]
[1763388065223,3.38,3117.7,3115.2,0.1814]
[1763388065421,0.39617658,3118.4,3115.2,0.1814]
[1763388065422,3.38,3116.7,3115.2,0.1814]
[1763388065643,3.38,3116.5,3115.2,0.1814]
[1763388066030,0.4728,3116.4,3115.2,0.1814]
[1763388066444,0.4728,3116.4,3115.0,0.4709]
[1763388066445,3.38,3116.2,3115.0,0.001]
[1763388066649,0.90699264,3116.0,3115.0,0.001]
[1763388067466,0.4728,3115.9,3115.0,0.001]
[1763388067821,4.28699264,3115.8,3115.0,0.001]
[1763388068023,0.90699264,3115.7,3115.0,0.001]
[1763388068229,0.4728,3115.7,3115.0,0.001]
[1763388068561,0.1896,3115.1,3115.0,0.001]
[1763388069289,0.4728,3115.4,3115.0,0.001]
[1763388069413,0.405504,3116.0,3115.0,0.001]
[1763388069414,0.1896,3115.1,3115.0,0.001]
[1763388069759,0.90699264,3115.8,3115.0,0.001]
[1763388070059,0.1896,3116.3,3115.1,0.4699]
[1763388070261,0.4728,3116.8,3115.3,0.405504]
[1763388070568,0.4728,3116.5,3115.1,0.4699]
[1763388070914,1.34816161,3119.3,3115.1,0.4699]
[1763388070915,0.6624,3117.0,3115.2,0.405504]
[1763388071139,0.6624,3117.0,3115.2,0.43760466]
[1763388071309,0.6624,3117.4,3115.4,0.405504]
[1763388071509,0.6624,3117.4,3115.6,0.405504]
[1763388071510,0.1896,3117.4,3115.6,0.405504]
[1763388071756,0.4728,3117.8,3115.7,0.03209551]
[1763388071917,0.4728,3117.8,3115.7,0.50199551]
[1763388072120,0.4728,3117.8,3115.7,0.4699]
[1763388072612,0.90699264,3117.5,3115.3,0.1822]
[1763388072812,0.42869926,3117.4,3115.4,0.4699]
[1763388073109,0.4728,3117.4,3115.5,0.405504]
[1763388073315,0.1896,3117.3,3115.5,0.405504]
[1763388073537,0.1896,3117.3,3115.5,0.875404]
[1763388073737,0.4728,3117.2,3115.5,0.875404]
[1763388073909,0.4728,3117.8,3115.7,0.405504]
[1763388074111,0.4728,3117.8,3115.9,0.405504]
[1763388074513,0.4728,3117.8,3115.3,0.1822]
[1763388074514,0.4728,3117.8,3116.0,0.4699]
[1763388074749,0.4728,3117.8,3115.4,0.405504]
[1763388074750,0.405504,3117.7,3115.4,0.405504]
[1763388074948,3.785504,3117.4,3115.4,0.4699]
[1763388075149,0.405504,3117.2,3115.4,0.4699]
[1763388075446,3.785504,3116.8,3115.0,0.001]
[1763388075613,0.405504,3116.6,3115.0,0.001]
[1763388075815,0.405504,3116.4,3115.0,0.001]
[1763388076254,0.17852966,3116.3,3115.0,0.001]
[1763388076452,0.4728,3116.4,3115.0,0.001]
[1763388076611,0.1896,3116.2,3115.0,0.001]
[1763388077030,0.6624,3116.2,3115.0,0.001]
[1763388077446,0.4625,3116.1,3115.0,0.001]
[1763388078655,0.1896,3116.2,3115.1,0.1822]
[1763388079029,0.1896,3116.2,3115.1,0.6373]
[1763388079516,0.1896,3116.4,3115.2,0.4551]
[1763388079860,0.1844,3119.4,3115.1,0.1822]
[1763388079861,0.4625,3116.3,3115.1,0.1822]
[1763388081220,0.405504,3116.6,3115.2,0.4551]
[1763388081455,1.29670326,3116.6,3115.2,0.4551]
[1763388081959,1.29670326,3116.6,3115.1,0.1822]
[1763388081960,0.42869926,3116.6,3115.1,0.1822]
[1763388082264,0.42869926,3116.6,3115.0,0.001]
[1763388082265,0.1844,3115.3,3115.0,0.001]
[1763388083227,0.4625,3115.2,3115.0,0.001]
[1763388083433,0.589904,3114.9,3114.7,0.001]
[1763388083628,4.28699264,3114.8,3114.7,0.001]
[1763388083832,0.90699264,3114.5,3112.8,1.04028344]
[1763388084072,0.405504,3114.1,3112.4,0.85888344]
[1763388084228,0.405504,3114.3,3112.0,0.85888344]
[1763388084432,0.405504,3114.1,3112.1,0.26420489]
[1763388084632,0.405504,3113.9,3111.9,0.6373]
[1763388085090,0.405504,3113.7,3111.9,0.6373]
[1763388085239,0.405504,3113.5,3111.5,0.4561]
[1763388085737,0.405504,3113.3,3111.5,0.4561]
[1763388085940,0.405504,3113.3,3111.5,0.001]
[1763388086254,0.90699264,3113.0,3111.5,0.001]
[1763388086562,0.587004,3111.6,3111.5,0.001]
[1763388086896,0.1807,3111.6,3111.5,0.001]
[1763388087107,0.1807,3111.6,3111.1,0.001]
[1763388087108,0.405504,3111.5,3111.1,0.001]
[1763388087284,0.405504,3111.3,3111.1,0.001]
[1763388087449,0.4625,3111.4,3111.1,0.001]
[1763388087649,0.4505,3111.4,3111.1,0.001]
[1763388087887,0.405504,3111.3,3111.1,0.001]
[1763388088253,0.4505,3111.2,3111.1,0.001]
[1763388088749,0.6312,3111.6,3111.4,0.001]
[1763388089188,0.4505,3111.5,3111.4,0.001]
[1763388089551,0.1921,3112.0,3111.4,0.001]
[1763388089756,0.4505,3113.1,3111.4,0.001]
[1763388090064,0.1921,3112.4,3111.4,0.001]
[1763388090488,0.4505,3112.3,3111.4,0.001]
[1763388090789,0.1921,3112.7,3111.4,0.001]
[1763388090986,0.632,3114.1,3111.6,0.405504]
[1763388091299,0.632,3114.1,3111.5,0.468]
[1763388091300,0.632,3114.1,3111.8,0.405504]
[1763388091498,0.632,3114.1,3111.6,0.405504]
[1763388091499,0.4505,3114.0,3111.6,0.405504]
[1763388091653,0.4505,3114.6,3111.6,0.468]
[1763388091856,0.4505,3114.6,3111.7,0.43764077]
[1763388092060,0.45272,3115.2,3111.7,0.43764077]
[1763388092266,0.4505,3115.7,3112.1,0.405504]
[1763388092501,8.5823524,3117.5,3112.3,1.26438744]
[1763388092502,0.4505,3116.4,3112.3,1.26438744]
[1763388092676,0.4505,3116.4,3112.5,1.26438744]
[1763388093008,0.4505,3116.4,3112.9,0.405504]
[1763388093207,0.4505,3116.4,3113.1,0.405504]
[1763388093363,0.6426,3116.9,3113.5,0.405504]
[1763388093564,0.4505,3117.6,3114.0,1.26438744]
[1763388093878,0.1921,3117.7,3114.4,1.26438744]
[1763388094077,0.1921,3117.7,3114.6,0.405504]
[1763388094387,0.1921,3117.7,3114.8,0.405504]
[1763388094602,0.1921,3117.7,3115.0,0.405504]
[1763388095103,0.1921,3117.7,3115.2,0.405504]
[1763388095268,0.1921,3117.7,3115.4,0.405504]
[1763388095771,0.1921,3117.7,3115.6,0.405504]
[1763388095973,0.4525,3118.1,3115.8,0.405504]
[1763388096387,0.4525,3118.1,3116.0,0.405504]
[1763388096588,0.4525,3118.1,3115.3,0.468]
[1763388096806,0.405504,3118.0,3115.3,0.468]
[1763388097024,1.35949264,3118.1,3115.1,0.1862]
[1763388097025,1.31249664,3117.4,3115.1,0.1862]
[1763388097363,0.405504,3117.2,3114.7,0.468]
[1763388097663,0.6426,3117.3,3114.7,0.468]
[1763388097864,0.856004,3117.2,3114.7,0.468]
[1763388098381,0.405504,3117.0,3114.7,0.468]
[1763388098869,0.405504,3116.8,3114.7,0.468]
[1763388099394,0.4505,3116.9,3114.7,0.468]
[1763388099395,0.90699264,3116.4,3114.7,0.468]
[1763388099906,0.73304965,3117.3,3114.8,0.43760879]
[1763388100106,0.68064855,3117.9,3114.8,0.43760879]
[1763388100107,0.17649966,3117.9,3116.3,0.1759]
[1763388100268,0.4525,3118.1,3116.3,0.1759]
[1763388100619,0.4505,3118.0,3116.3,0.1759]
[1763388100820,7.58889649,3118.0,3115.5,0.468]
[1763388100999,1.35749264,3117.9,3115.6,0.47923794]
[1763388101204,0.856004,3117.8,3115.6,0.468]
[1763388101405,0.856004,3117.8,3114.8,0.1759]
[1763388101406,1.31249664,3117.2,3115.1,0.468]
[1763388101769,0.405504,3117.0,3114.8,0.1759]
[1763388102020,0.405504,3117.0,3114.9,0.468]
[1763388102178,0.405504,3116.8,3114.9,0.468]
[1763388102376,0.4505,3116.9,3114.9,0.468]
[1763388102569,0.1921,3117.1,3114.9,0.468]
[1763388102768,0.4505,3117.9,3115.0,0.41668237]
[1763388103005,0.4505,3117.9,3115.2,0.405504]
[1763388103229,0.4505,3117.7,3115.2,0.405504]
[1763388103373,0.4505,3117.7,3114.8,0.1759]
[1763388103374,0.4505,3117.7,3115.4,0.405504]
[1763388103567,0.4505,3117.7,3115.4,0.0320986]
[1763388103568,0.405504,3117.6,3115.4,0.0320986]
[1763388103915,0.405504,3117.6,3115.4,0.468]
[1763388104213,0.405504,3117.4,3115.4,0.468]
[1763388104732,0.405504,3117.2,3115.4,0.468]
[1763388105189,0.405504,3117.2,3114.8,0.581404]
[1763388105190,0.405504,3117.0,3115.1,0.468]
[1763388105406,0.405504,3117.0,3114.8,0.1759]
[1763388105630,0.405504,3116.8,3115.0,0.468]
[1763388106103,0.4505,3117.2,3115.1,0.405504]
[1763388106304,0.405504,3117.0,3115.0,0.468]
[1763388106669,0.4505,3116.9,3115.0,0.468]
[1763388106924,0.405504,3116.8,3115.0,0.468]
[1763388107272,0.405504,3116.6,3114.8,0.1759]
[1763388107672,0.4505,3116.5,3114.8,0.1759]
[1763388108373,0.4505,3116.5,3114.8,0.6439]
[1763388108622,0.405504,3117.1,3114.9,0.405504]
[1763388108623,0.856004,3117.1,3114.9,0.405504]
[1763388108830,0.405504,3116.9,3114.9,0.873504]
[1763388109008,0.17629966,3117.0,3115.0,0.468]
[1763388109206,0.17629966,3117.0,3115.1,0.03210169]
[1763388109406,0.17629966,3117.0,3115.0,0.468]
[1763388109407,3.38,3116.8,3115.0,0.468]
[1763388109671,0.17629966,3117.0,3115.1,0.405504]
[1763388109927,0.1921,3117.3,3115.1,0.405504]
[1763388109928,0.1913,3117.3,3115.1,0.405504]
[1763388110074,0.1913,3117.3,3114.8,0.1759]
[1763388110075,3.38,3117.0,3114.9,0.405504]
[1763388110691,3.38,3117.0,3115.1,0.405504]
[1763388110935,0.1921,3117.5,3115.0,0.50010272]
[1763388111070,1.09909264,3117.5,3115.1,0.405504]
[1763388111394,4.28699264,3117.3,3115.3,0.405504]
[1763388111602,0.002,3117.7,3115.0,0.468]
[1763388111603,0.002,3117.7,3115.1,0.43760569]
[1763388112109,3.38,3117.3,3115.3,0.405504]
[1763388112316,0.4505,3117.6,3115.3,0.405504]
[1763388112504,0.002,3117.7,3115.5,0.405504]
[1763388112821,0.002,3117.7,3115.7,0.405504]
[1763388113128,0.002,3117.7,3115.6,0.03209299]
[1763388113129,0.002,3117.7,3115.9,0.405504]
[1763388113286,0.002,3117.7,3116.1,0.405504]
[1763388113491,0.002,3117.7,3116.1,0.43759539]
[1763388113492,0.90699264,3117.5,3116.1,0.43759539]
[1763388113810,0.002,3117.7,3116.3,0.405504]
[1763388114175,0.002,3117.7,3116.5,0.405504]
[1763388114372,0.002,3117.7,3116.7,0.405504]
[1763388114733,0.002,3117.7,3116.9,0.405504]
[1763388114933,0.002,3117.7,3116.8,0.20878418]
[1763388114934,0.002,3117.7,3117.1,0.405504]
[1763388115141,0.002,3118.1,3117.1,0.405504]
[1763388115442,0.002,3118.1,3118.0,0.1743]
[1763388115590,0.002,3118.1,3117.5,0.405504]
[1763388115796,0.002,3118.1,3117.6,0.1743]
[1763388116594,0.002,3118.1,3117.2,0.405504]
[1763388116934,0.002,3118.1,3117.7,0.1743]
[1763388117106,0.002,3118.1,3117.8,0.405504]
[1763388117431,0.002,3118.1,3117.8,0.90557789]
[1763388117633,0.00143285,3118.4,3117.8,0.90557789]
[1763388117832,0.00143285,3118.4,3117.9,0.4893]
[1763388118202,0.00143285,3118.4,3117.7,0.1743]
[1763388118711,0.00143285,3118.4,3117.1,0.405504]
[1763388118907,0.00143285,3118.4,3117.2,0.4383]
[1763388119113,0.00143285,3118.4,3117.3,0.405504]
[1763388119323,0.00143285,3118.4,3117.2,0.4383]
[1763388119912,0.00143285,3118.4,3118.3,0.1743]
[1763388120119,0.002,3118.5,3118.4,0.405504]
[1763388120438,1.66397168,3121.9,3118.4,0.405504]
[1763388120439,0.462,3121.0,3118.4,0.43729498]
[1763388120596,0.462,3121.0,3118.6,0.405504]
[1763388120998,0.462,3121.0,3118.4,0.405504]
[1763388120999,0.90699264,3120.9,3118.4,0.405504]
[1763388121295,0.47489926,3120.8,3118.4,0.405504]
[1763388121530,0.462,3120.9,3118.6,0.405504]
[1763388121710,0.462,3120.8,3118.8,0.405504]
[1763388121894,0.462,3120.8,3119.0,0.405504]
[1763388122095,0.462,3120.8,3119.2,0.405504]
[1763388122331,0.1921,3121.2,3119.4,0.405504]
[1763388122629,7.47161229,3121.1,3119.1,0.1783]
[1763388122859,0.76637123,3121.0,3119.1,0.1783]
[1763388123057,5.51536387,3121.0,3119.1,0.1783]
[1763388123260,1.22837123,3121.0,3119.2,0.9268635]
[1763388123443,0.462,3121.0,3119.2,0.9268635]
[1763388123653,0.462,3121.0,3119.4,0.405504]
[1763388124031,0.462,3121.0,3119.5,0.4893]
[1763388124363,0.462,3121.0,3119.1,0.1783]
[1763388124571,0.462,3121.0,3118.3,0.6636]
[1763388124572,0.405504,3120.9,3118.3,0.6636]
[1763388124728,0.17744966,3120.8,3118.3,0.6636]
[1763388124925,0.405504,3120.6,3118.4,0.4893]
[1763388125288,0.462,3120.7,3118.5,0.03206669]
[1763388125567,0.462,3120.6,3118.4,0.4893]
[1763388125773,0.462,3120.6,3118.7,0.405504]
[1763388126063,0.462,3120.9,3118.9,0.405504]
[1763388126215,0.462,3120.9,3119.1,0.405504]
[1763388126414,0.462,3120.9,3119.2,0.5213595]
[1763388127212,0.462,3120.9,3119.3,0.405504]
[1763388127425,0.1561,3121.2,3119.3,0.43756247]
[1763388127625,0.1561,3121.2,3119.3,0.405504]
[1763388127920,0.1561,3121.2,3118.3,0.1743]
[1763388127921,0.1561,3121.2,3119.4,0.4893]
[1763388128122,0.1561,3121.2,3119.5,0.43756041]
[1763388128347,0.1561,3121.2,3119.4,0.4893]
[1763388128620,0.1561,3121.2,3119.5,0.405504]
[1763388128827,0.002,3121.2,3119.7,0.405504]
[1763388129119,0.002,3121.2,3119.6,0.03205539]
[1763388129120,0.002,3121.2,3119.9,0.405504]
[1763388129334,0.002,3121.2,3120.1,0.405504]
[1763388129621,0.002,3121.2,3120.2,0.03204922]
[1763388129786,0.002,3121.2,3120.3,0.405504]
[1763388129988,0.002,3121.2,3120.5,0.405504]
[1763388130492,0.002,3121.2,3120.3,0.0320482]
[1763388130823,0.002,3121.2,3120.0,0.1972]
[1763388131140,0.462,3121.1,3119.2,0.6865]
[1763388131427,0.405504,3121.0,3119.2,0.1972]
[1763388131886,0.462,3120.9,3119.2,0.6865]
[1763388132087,0.405504,3120.8,3118.7,0.6865]
[1763388132285,0.405504,3120.6,3118.7,0.6865]
[1763388132482,0.90699264,3120.6,3117.9,0.4893]
[1763388132723,1.31169664,3120.1,3117.9,0.1972]
[1763388132926,0.462,3120.0,3118.2,0.4893]
[1763388133284,0.1921,3119.9,3118.2,0.4893]
[1763388133794,0.462,3119.8,3118.2,0.4893]
[1763388134230,0.462,3119.8,3117.9,0.1972]
[1763388134521,0.462,3119.8,3118.0,0.4893]
[1763388134895,0.462,3119.8,3117.9,0.1972]
[1763388134896,0.405504,3119.7,3117.9,0.1972]
[1763388135297,0.462,3119.6,3117.9,0.1972]
[1763388136393,0.1921,3119.9,3118.1,0.405504]
[1763388136695,0.462,3120.2,3118.3,0.405504]
[1763388136897,7.00961229,3121.1,3118.5,0.405504]
[1763388137113,0.462,3120.7,3118.5,0.405504]
[1763388137328,0.462,3120.7,3118.7,0.405504]
[1763388137844,0.462,3120.7,3118.9,0.405504]
[1763388138009,0.462,3120.7,3118.9,0.43756658]
[1763388138343,0.462,3120.7,3118.9,0.1964]
[1763388138538,0.462,3120.7,3119.0,0.4902]
[1763388139121,0.462,3120.7,3118.3,0.4902]
[1763388139322,1.31249664,3120.4,3118.3,0.4902]
[1763388139503,0.405504,3120.2,3118.3,0.4902]
[1763388139704,0.405504,3120.2,3117.9,0.1972]
[1763388139912,1.31249664,3119.8,3117.9,0.1972]
[1763388140344,0.6707,3119.7,3118.1,0.405504]
[1763388140548,0.6707,3119.7,3118.0,0.4902]
[1763388140841,0.4882,3119.6,3118.0,0.4902]
[1763388141102,0.4882,3120.6,3118.1,0.405504]
[1763388141209,0.18023422,3121.1,3119.6,0.1964]
[1763388141408,0.1921,3121.3,3119.6,0.1964]
[1763388141607,0.1921,3121.3,3119.7,0.4902]
[1763388141812,0.1921,3121.3,3119.7,0.52225436]
[1763388142034,0.1921,3121.3,3119.7,0.4902]
[1763388142211,0.6803,3121.3,3119.7,0.4902]
[1763388142415,0.1921,3121.3,3119.7,0.4902]
[1763388142749,0.4882,3121.1,3119.6,0.1964]
[1763388142940,0.4882,3121.1,3119.3,0.1964]
[1763388143448,0.4882,3121.1,3119.3,0.6866]
[1763388143647,0.4882,3121.1,3119.4,0.03205744]
[1763388143953,0.4882,3121.1,3119.4,0.4902]
[1763388144550,0.4882,3121.1,3119.3,0.1964]
[1763388144551,0.90699264,3120.9,3119.3,0.1964]
[1763388144852,4.28699264,3120.7,3119.0,0.4902]
[1763388145231,4.28699264,3120.5,3118.9,0.001]
[1763388145637,0.4882,3120.4,3118.9,0.001]
[1763388145944,0.4882,3120.4,3118.9,0.1974]
[1763388146624,4.28699264,3120.7,3119.0,0.4902]
[1763388146825,0.47156919,3120.6,3119.0,0.4902]
[1763388147160,0.405504,3121.0,3119.0,0.4902]
[1763388147331,0.4882,3120.8,3119.0,0.4902]
[1763388148621,0.4882,3120.8,3119.1,0.405504]
[1763388149657,4.69249664,3120.7,3118.9,0.001]
[1763388149860,1.31249664,3120.5,3118.9,0.001]
[1763388150251,0.4848,3120.4,3118.9,0.001]
[1763388151357,0.4848,3120.4,3118.9,0.03306258]
[1763388151864,0.4848,3120.4,3118.9,0.001]
[1763388152753,0.4848,3120.4,3119.0,1.33818344]
[1763388153120,0.4848,3120.4,3118.9,0.001]
[1763388153600,4.28699264,3120.8,3119.0,0.4793]
[1763388153807,0.4848,3120.7,3119.0,0.4793]
[1763388153968,3.8648,3120.7,3118.9,0.001]
[1763388154300,0.90699264,3120.6,3119.0,0.405504]
[1763388154460,0.4848,3120.7,3119.0,0.405504]
[1763388154788,0.90699264,3120.5,3119.1,0.4793]
[1763388155513,1.39179264,3120.5,3119.1,0.4793]
[1763388156001,1.3841719,3120.5,3119.1,0.4793]
[1763388156601,1.3841719,3120.5,3118.9,0.21823801]
[1763388156602,4.28699264,3120.2,3118.9,0.21823801]
[1763388156772,4.28699264,3120.2,3118.9,0.001]
[1763388157883,3.8648,3120.1,3118.9,0.001]
[1763388158511,0.4848,3120.0,3118.9,0.001]
[1763388159010,0.1803,3119.9,3118.9,0.001]
[1763388159210,0.90699264,3119.7,3118.9,0.001]
[1763388159511,3.38,3119.3,3118.9,0.001]
[1763388159804,0.90699264,3119.4,3118.9,0.001]
[1763388159805,0.90699264,3119.0,3118.9,0.001]
[1763388160218,0.90699264,3119.0,3117.4,0.85888344]
[1763388160219,3.965804,3118.6,3117.3,0.85888344]
[1763388160389,3.965804,3118.6,3116.5,0.85888344]
[1763388160390,0.0448,3117.7,3116.5,0.85888344]
[1763388160593,0.0448,3117.7,3116.3,0.1972]
[1763388160796,0.4848,3117.6,3116.3,0.1972]
[1763388161113,3.38,3117.4,3116.1,0.4793]
[1763388161318,0.87576,3117.6,3115.8,0.85888344]
[1763388161319,3.38,3117.2,3115.8,0.85888344]
[1763388161516,3.38,3117.2,3115.7,0.1916]
[1763388161517,0.90699264,3117.1,3115.7,0.1916]
[1763388161715,1.39179264,3117.1,3115.7,0.1916]
[1763388162015,4.77179264,3117.1,3115.7,0.6709]
[1763388162215,3.38,3116.5,3115.4,0.85888344]
[1763388162434,3.38,3116.5,3115.0,1.71972886]
[1763388162435,3.38,3116.3,3115.0,0.001]
[1763388162607,3.38,3116.4,3115.0,0.001]
[1763388162939,4.28699264,3116.3,3115.0,0.4803]
[1763388163109,0.4848,3116.5,3115.0,0.4803]
[1763388163294,0.1803,3116.2,3115.0,0.4803]
[1763388163496,0.1803,3116.2,3115.0,0.001]
[1763388163682,0.6651,3116.2,3115.0,0.001]
[1763388163882,0.1803,3116.2,3115.0,0.4803]
[1763388164787,0.1803,3116.6,3115.0,0.51240272]
[1763388164997,0.1803,3116.6,3115.0,0.4803]
[1763388165221,0.1803,3116.6,3115.1,0.405504]
[1763388165599,0.0448,3117.7,3115.2,0.51140066]
[1763388165600,0.1803,3117.0,3115.2,0.51140066]
[1763388165800,0.5296,3117.7,3115.3,0.405504]
[1763388165988,0.5296,3117.7,3115.5,0.405504]
[1763388166189,0.5296,3117.7,3115.6,0.51139654]
[1763388166389,0.5296,3117.7,3115.7,0.405504]
[1763388166623,0.1803,3118.0,3115.9,0.405504]
[1763388166825,0.1803,3118.0,3115.8,0.4793]
[1763388167025,0.1803,3118.0,3115.9,0.405504]
[1763388167233,0.1803,3118.0,3116.0,0.4793]
[1763388167234,0.4848,3117.9,3116.0,0.4793]
[1763388167843,0.1803,3118.0,3116.1,0.03209138]
[1763388168041,0.4848,3117.9,3116.1,0.03209138]
[1763388168361,0.4848,3117.9,3116.2,0.4793]
[1763388170440,0.1803,3118.0,3116.3,0.22368933]
[1763388170806,0.4848,3118.3,3116.4,0.4793]
[1763388171108,0.1803,3118.6,3116.5,0.405504]
[1763388171308,0.1803,3118.6,3116.7,0.405504]
[1763388171753,0.1803,3118.6,3116.8,0.4793]
[1763388172651,0.1803,3119.1,3116.9,0.405504]
[1763388173068,0.1803,3119.1,3117.0,0.4793]
[1763388173364,0.4848,3119.0,3117.0,0.4793]
[1763388173653,0.4848,3119.0,3117.1,0.597104]
[1763388173966,0.1803,3119.1,3117.1,0.597104]
[1763388174125,0.55337,3120.1,3117.3,0.405504]
[1763388174543,0.55337,3120.1,3117.5,0.405504]
[1763388174935,0.55337,3120.1,3117.6,0.4793]
[1763388175542,3.93337,3120.1,3117.1,0.6709]
[1763388175742,4.69249664,3119.6,3117.1,0.6709]
[1763388175943,4.69249664,3119.6,3117.1,0.1916]
[1763388176121,0.405504,3119.4,3117.1,0.1916]
[1763388176331,0.405504,3119.4,3117.2,0.51138007]
[1763388176655,0.4848,3119.3,3117.3,0.43758304]
[1763388176813,0.4848,3119.7,3117.5,0.405504]
[1763388177326,0.4848,3119.7,3117.7,0.405504]
[1763388177860,0.4848,3119.7,3117.1,0.1916]
[1763388177861,0.4848,3119.7,3117.8,0.4756]
[1763388178848,0.405504,3119.6,3117.8,0.4756]
[1763388179276,0.405504,3120.0,3117.2,0.4756]
[1763388179475,1.31249664,3119.6,3117.2,0.4756]
[1763388179634,0.405504,3119.4,3117.2,0.4756]
[1763388180847,0.405504,3119.0,3116.6,0.4756]
[1763388181168,0.83313444,3119.3,3116.6,0.4756]
[1763388181482,0.4686,3119.7,3116.7,0.405504]
[1763388181786,0.4686,3119.7,3117.1,0.405504]
[1763388182080,0.4686,3119.7,3117.0,0.405504]
[1763388182286,0.07057,3120.1,3117.2,0.405504]
[1763388182536,0.4686,3119.8,3117.2,0.405504]
[1763388182698,0.07057,3120.1,3117.4,0.405504]
[1763388182896,0.002,3120.1,3117.6,1.26438744]
[1763388183246,0.002,3120.1,3117.8,0.405504]
[1763388183447,0.002,3120.1,3120.0,0.1519]
[1763388183695,0.002,3120.1,3118.5,0.1519]
[1763388183852,0.4686,3120.0,3118.0,0.4756]
[1763388184052,0.4686,3120.0,3117.7,0.1807]
[1763388184053,0.405504,3119.9,3117.7,0.1807]
[1763388184283,0.405504,3119.7,3117.5,0.4756]
[1763388184446,0.90699264,3118.8,3116.8,0.4756]
[1763388184646,0.8615341,3119.6,3117.2,0.4756]
[1763388184876,0.8615341,3119.6,3116.1,0.85988344]
[1763388184877,0.1936,3118.7,3116.7,0.1807]
[1763388185379,0.405504,3118.2,3116.5,0.001]
[1763388185581,0.405504,3118.0,3116.5,0.001]
[1763388185881,0.93784966,3118.1,3116.6,0.4756]
[1763388186088,0.4686,3118.0,3116.6,0.4756]
[1763388186347,3.785504,3118.3,3116.6,0.4756]
[1763388186348,0.405504,3118.3,3116.6,0.50736644]
[1763388186493,1.10457788,3119.9,3116.6,0.50736644]
[1763388186494,0.4686,3118.6,3116.6,0.4756]
[1763388187003,0.405504,3119.0,3116.7,0.4375739]
[1763388187300,0.4686,3119.1,3116.7,0.405504]
[1763388187514,0.1936,3119.4,3116.9,0.405504]
[1763388187711,0.1936,3119.4,3117.1,1.26438744]
[1763388188027,0.1936,3119.4,3117.3,0.405504]
[1763388188620,0.1936,3119.4,3117.5,0.405504]
[1763388188974,0.1936,3119.4,3117.7,0.405504]
[1763388189175,0.4686,3119.7,3117.8,0.01995662]
[1763388189488,0.4686,3119.7,3117.8,0.67625662]
[1763388189886,0.1936,3119.8,3117.9,0.881104]
[1763388190286,0.1936,3119.8,3118.0,0.4756]
[1763388190487,0.405504,3119.5,3117.8,0.1807]
[1763388190910,0.405504,3119.3,3117.8,0.6563]
[1763388191697,0.4686,3119.4,3117.9,0.4756]
[1763388192308,0.002,3120.1,3118.0,0.405504]
[1763388192513,0.002,3120.1,3119.3,0.1807]
[1763388192696,0.002,3120.1,3118.8,0.1807]
[1763388192697,0.002,3120.1,3118.8,0.6563]
[1763388193100,0.002,3120.1,3118.9,0.4756]
[1763388195821,0.4686,3120.0,3118.6,0.1807]
[1763388196015,0.002,3120.1,3118.6,0.1807]
[1763388196195,0.002,3120.1,3118.7,0.4756]
[1763388196587,0.4706,3120.1,3118.7,0.4756]
[1763388196916,0.4706,3120.1,3118.6,0.1807]
[1763388197719,0.002,3120.1,3118.7,0.4758]
[1763388198080,0.002,3120.1,3120.0,0.1997]
[1763388198594,0.002,3120.1,3120.0,0.6755]